bitfinex-derivatives/quotes_ETHF0:USTF0_20250323
["timestamp","ask_amount","ask_price","bid_price","bid_amount"]
[1742711536972,0.661,2002.6,2002.5,0.99893]
[1742711537178,1.3446,2002.6,2002.5,0.99893]
[1742711537977,2.6217,2002.6,2002.5,0.99893]
[1742711544582,3.62058,2002.6,2002.5,0.99893]
[1742711553395,3.62062,2002.6,2002.5,0.99893]
[1742711554292,0.99893,2002.5,2002.4,2.38124]
[1742711554492,2.31643,2002.5,2002.4,2.38124]
[1742711555494,1.3175,2002.5,2002.4,2.38124]
[1742711558791,1.3175,2002.5,2002.4,6.11293051]
[1742711559092,1.3175,2002.5,2002.4,6.11324134]
[1742711559295,1.3175,2002.5,2002.4,3.55404134]
[1742711559696,1.3175,2002.5,2002.4,6.76184134]
[1742711562097,2.31643,2002.5,2002.4,6.76184134]
[1742711562300,2.31643,2002.5,2002.4,6.11324134]
[1742711562991,2.31643,2002.5,2002.4,6.11352868]
[1742711563398,1.3175,2002.5,2002.4,6.11352868]
[1742711564995,1.3175,2002.5,2002.4,6.1135786]
[1742711567092,1.3175,2002.5,2002.4,6.11357695]
[1742711567497,1.3175,2002.5,2002.4,6.11358315]
[1742711568305,1.3175,2002.5,2002.4,6.76618315]
[1742711571300,1.3175,2002.5,2002.4,6.76608697]
[1742711571900,2.31643,2002.5,2002.4,6.76608697]
[1742711573306,2.31643,2002.5,2002.4,6.76606417]
[1742711573495,2.31643,2002.5,2002.4,3.55826417]
[1742711573700,2.31643,2002.5,2002.4,6.76605713]
[1742711575303,2.31643,2002.5,2002.4,6.76610822]
[1742711579506,2.31643,2002.5,2002.4,6.76634079]
[1742711580014,2.31643,2002.5,2002.4,6.76633958]
[1742711581217,2.31643,2002.5,2002.4,6.76634569]
[1742711582915,2.31643,2002.5,2002.4,6.76642523]
[1742711585011,2.31643,2002.5,2002.4,6.76644506]
[1742711586919,2.31643,2002.5,2002.4,6.76646034]
[1742711587322,2.31643,2002.5,2002.4,6.76646867]
[1742711587617,0.99898,2002.4,2002.3,0.00749756]
[1742711587810,3.02678,2002.4,2002.3,0.00749756]
[1742711595921,0.99912,2002.2,2002.0,3.2078]
[1742711596114,0.99913,2002.1,2002.0,4.6014]
[1742711596315,0.6938,2002.1,2001.7,4.2071]
[1742711596621,2.95311,2002.0,2001.8,1.91780557]
[1742711596926,1.307,2001.9,2001.8,1.3936]
[1742711597120,2.30623,2001.9,2001.8,1.3936]
[1742711597319,1.307,2001.9,2001.7,3.21529756]
[1742711597524,2.0129,2001.8,2001.7,4.49419756]
[1742711599330,3.01218,2001.8,2001.7,4.49419756]
[1742711602233,2.0129,2001.8,2001.7,4.49419756]
[1742711602734,3.01218,2001.8,2001.7,4.49419756]
[1742711603128,2.0129,2001.8,2001.7,4.49419756]
[1742711603435,3.01218,2001.8,2001.7,4.49419756]
[1742711603834,2.0129,2001.8,2001.7,4.49419756]
[1742711604135,3.01218,2001.8,2001.7,4.49419756]
[1742711605223,2.0129,2001.8,2001.7,4.49419756]
[1742711605631,3.01218,2001.8,2001.7,4.49419756]
[1742711606128,2.0129,2001.8,2001.7,4.49419756]
[1742711606326,3.01218,2001.8,2001.7,4.49419756]
[1742711611543,3.01218,2001.8,2001.7,1.28639756]
[1742711611741,2.0129,2001.8,2001.7,1.28639756]
[1742711615438,3.01218,2001.8,2001.7,1.28639756]
[1742711624651,4.6528144,2002.8,2002.0,2.49793]
[1742711624952,0.99895,2002.5,2002.3,0.99901]
[1742711625143,0.99895,2002.5,2002.4,1.2835]
[1742711625445,0.99895,2002.5,2002.4,2.95228]
[1742711626041,0.99895,2002.5,2002.4,1.9533]
[1742711626449,0.99895,2002.5,2002.4,2.95228]
[1742711626650,3.07457734,2002.7,2002.4,2.95227]
[1742711626851,0.99893,2002.5,2002.4,2.95227]
[1742711627039,0.99893,2002.5,2002.4,1.9533]
[1742711628142,0.99893,2002.5,2002.4,2.95228]
[1742711628752,0.99903,2002.3,2002.2,3.2078]
[1742711628961,0.99908,2002.2,2002.1,1.67043]
[1742711630153,0.99908,2002.2,2002.0,1.2845]
[1742711630353,0.99908,2002.2,2002.0,2.98174]
[1742711630853,0.99908,2002.2,2002.1,1.3377]
[1742711637260,2.27548,2002.2,2002.1,1.3377]
[1742711639653,0.99918,2002.0,2001.9,3.2078]
[1742711639960,0.99918,2002.0,2001.9,4.5469]
[1742711640356,2.39788,2002.0,2001.9,4.5469]
[1742711640950,1.3987,2002.0,2001.7,0.00749756]
[1742711641252,2.051,2001.9,2001.7,1.34659756]
[1742711641447,1.3987,2001.8,2001.7,1.34659756]
[1742711641658,2.0412,2001.8,2001.7,1.34659756]
[1742711641862,3.04048,2001.8,2001.7,1.34659756]
[1742711643259,2.39798,2001.8,2001.7,1.34659756]
[1742711653172,1.3987,2001.8,2001.7,2.34592756]
[1742711653467,2.39798,2001.8,2001.7,1.34659756]
[1742711653969,1.3987,2001.8,2001.7,1.34659756]
[1742711654170,1.3987,2001.8,2001.7,2.34592756]
[1742711654974,2.39798,2001.8,2001.7,1.34659756]
[1742711655270,1.3987,2001.8,2001.7,3.04022756]
[1742711657571,1.3987,2001.8,2001.7,3.56574381]
[1742711658472,1.4017,2001.9,2001.8,0.99928]
[1742711658668,1.4017,2001.9,2001.8,2.33448]
[1742711661366,1.4017,2001.9,2001.8,2.86036062]
[1742711662874,1.4017,2001.9,2001.8,2.86043179]
[1742711664375,2.0518,2001.9,2001.8,2.86043179]
[1742711664970,3.05103,2001.9,2001.8,1.86115179]
[1742711665375,3.05103,2001.9,2001.8,0.52595179]
[1742711665574,0.99928,2001.8,2001.7,0.00749756]
[1742711665774,2.38018,2001.8,2001.7,0.00749756]
[1742711666175,3.05818,2001.8,2001.7,0.00749756]
[1742711670380,2.0589,2001.8,2001.7,0.00749756]
[1742711670579,3.05818,2001.8,2001.7,0.00749756]
[1742711675380,2.49847,2001.6,2001.3,3.2078]
[1742711675582,15.49938,2001.8,2000.1,15.726]
[1742711675583,0.99949,2001.4,2001.2,0.99954]
[1742711675783,5.58635,2001.5,2001.4,0.99948]
[1742711676572,5.58633,2001.5,2001.4,1.2775]
[1742711679987,5.58633,2001.5,2001.4,1.9324]
[1742711680189,2.37853,2001.5,2001.4,1.9324]
[1742711681077,1.3791,2001.5,2001.4,2.93188]
[1742711681282,1.00684756,2001.7,2001.5,0.99941]
[1742711681483,1.2821,2001.6,2001.5,0.99941]
[1742711681785,1.2821,2001.6,2001.5,1.52111417]
[1742711683993,0.00749756,2001.7,2001.6,0.99938]
[1742711684190,0.00749756,2001.7,2001.6,1.52108417]
[1742711684590,1.36109756,2001.7,2001.6,1.52108417]
[1742711685493,0.00749756,2001.7,2001.6,1.52127984]
[1742711688988,0.00749756,2001.7,2001.6,1.52129073]
[1742711690881,1.28369756,2001.7,2001.6,1.52129073]
[1742711691085,1.28369756,2001.7,2001.6,1.52129954]
[1742711692093,1.28369756,2001.7,2001.6,2.18759954]
[1742711693092,1.28369756,2001.7,2001.6,2.18760986]
[1742711696993,1.28369756,2001.7,2001.6,2.1877699]
[1742711697200,1.28369756,2001.7,2001.6,3.5853699]
[1742711698904,2.28302756,2001.7,2001.6,1.9196899]
[1742711699098,2.28302756,2001.7,2001.6,0.5220899]
[1742711699412,2.28302756,2001.7,2001.5,4.20719]
[1742711699704,1.262,2001.6,2001.5,5.51309]
[1742711700001,1.262,2001.6,2001.5,6.03527887]
[1742711700905,1.262,2001.6,2001.5,6.03526733]
[1742711701293,2.26138,2001.6,2001.5,3.72997733]
[1742711701503,2.26138,2001.6,2001.5,3.2078]
[1742711701797,1.262,2001.6,2001.5,3.2078]
[1742711702004,1.262,2001.6,2001.5,4.20723]
[1742711702701,1.262,2001.6,2001.5,5.47333]
[1742711705105,1.9289,2001.6,2001.5,5.47333]
[1742711706001,1.262,2001.6,2001.5,5.47333]
[1742711706201,1.262,2001.6,2001.5,6.64859248]
[1742711706598,1.262,2001.6,2001.5,6.64861632]
[1742711706805,0.00749756,2001.7,2001.6,0.99938]
[1742711706998,0.00749756,2001.7,2001.6,2.78986632]
[1742711706999,1.29929756,2001.7,2001.6,2.78986632]
[1742711707307,0.00749756,2001.7,2001.6,2.78986632]
[1742711707602,1.3282,2002.0,2001.9,0.99923]
[1742711707799,1.3282,2002.0,2001.9,4.72881637]
[1742711707995,4.6239475,2002.1,2001.9,3.72958637]
[1742711708200,4.6239475,2002.1,2002.0,0.99918]
[1742711708708,5.9157475,2002.1,2002.0,2.26768]
[1742711709303,1.2918,2002.1,2002.0,2.26768]
[1742711709503,1.2918,2002.1,2002.0,2.78931628]
[1742711710608,1.2918,2002.1,2002.0,2.26768]
[1742711710805,1.2918,2002.1,2002.0,2.78929102]
[1742711710999,1.2918,2002.1,2002.0,2.26768]
[1742711711207,1.2918,2002.1,2002.0,2.78929242]
[1742711712806,1.2918,2002.1,2002.0,2.78908056]
[1742711714810,0.00749756,2002.3,2002.2,0.99908]
[1742711715014,1.39329756,2002.3,2002.2,4.20688]
[1742711715209,1.39329756,2002.3,2002.2,5.49898]
[1742711716307,1.39329756,2002.3,2002.2,2.29118]
[1742711718309,1.39329756,2002.3,2002.2,1.2921]
[1742711718815,1.39329756,2002.3,2002.2,2.29118]
[1742711720909,1.39329756,2002.3,2002.2,0.99908]
[1742711721211,1.39329756,2002.3,2002.1,0.6793]
[1742711721212,1.39329756,2002.3,2002.1,0.99909]
[1742711721407,2.39232756,2002.3,2002.1,0.99909]
[1742711721925,1.324,2002.2,2002.1,0.99909]
[1742711723410,1.324,2002.2,2002.0,1.3984]
[1742711723611,0.6355,2002.1,2002.0,2.39758]
[1742711730726,1.3021,2002.1,2002.0,1.3984]
[1742711731026,2.6152,2002.1,2002.0,1.3984]
[1742711731619,2.6152,2002.1,2001.8,0.6654]
[1742711731827,1.3793,2002.0,2001.6,0.99934]
[1742711732024,0.99926,2001.9,2001.6,2.31884]
[1742711732223,2.048,2001.8,2001.6,2.31884]
[1742711732423,1.3793,2001.7,2001.6,2.31884]
[1742711732718,1.3793,2001.7,2001.6,2.84019266]
[1742711733726,1.3793,2001.7,2001.6,2.84030918]
[1742711735828,1.3793,2001.7,2001.6,2.84056365]
[1742711736632,1.3793,2001.7,2001.6,2.31884]
[1742711740935,1.3793,2001.7,2001.6,2.31888]
[1742711750940,1.3793,2001.7,2001.6,1.3195]
[1742711751341,1.3793,2001.7,2001.6,2.31888]
[1742711754041,1.3793,2001.7,2001.6,2.84061153]
[1742711754640,1.3793,2001.7,2001.6,2.84064669]
[1742711758046,2.0414,2001.7,2001.6,2.84064669]
[1742711758246,2.0414,2001.7,2001.6,2.84102837]
[1742711758640,2.0414,2001.7,2001.6,1.84164837]
[1742711759141,2.7,2001.7,2001.6,1.84164837]
[1742711759845,2.7,2001.7,2001.6,2.84102837]
[1742711760039,2.7,2001.7,2001.6,2.31888]
[1742711760245,2.7,2001.7,2001.6,2.84136161]
[1742711760746,2.7,2001.7,2001.6,2.84157243]
[1742711762550,2.7,2001.7,2001.6,1.84219243]
[1742711762752,2.7,2001.7,2001.6,2.84157243]
[1742711762944,3.69933,2001.7,2001.6,0.52269243]
[1742711763147,0.99943,2001.5,2001.4,1.3529]
[1742711763342,0.99943,2001.5,2001.4,1.87596468]
[1742711763851,2.36793,2001.5,2001.4,1.87596468]
[1742711764052,1.3685,2001.5,2001.4,1.87596468]
[1742711764455,2.36793,2001.5,2001.4,1.87596468]
[1742711764945,1.3685,2001.5,2001.4,1.87596468]
[1742711765250,2.36793,2001.5,2001.4,1.87596468]
[1742711765552,2.36793,2001.5,2001.4,1.3529]
[1742711767151,2.36793,2001.5,2001.4,1.87555641]
[1742711767350,2.36793,2001.5,2001.4,1.3529]
[1742711768746,2.36793,2001.5,2001.2,5.59563756]
[1742711769049,2.0523,2001.4,2001.3,1.91362944]
[1742711769352,2.7189,2001.4,2001.3,1.91362944]
[1742711769548,2.7189,2001.4,2001.3,1.3911]
[1742711769748,2.7189,2001.4,2001.3,2.91309751]
[1742711770144,2.7189,2001.4,2001.3,1.91356751]
[1742711770452,2.7189,2001.4,2001.3,0.52246751]
[1742711770652,2.7189,2001.4,2001.3,1.91356751]
[1742711771442,2.7189,2001.4,2001.3,1.3911]
[1742711771645,2.7189,2001.4,2001.3,2.39063]
[1742711771952,2.7189,2001.4,2001.3,2.91298047]
[1742711772453,2.7189,2001.4,2001.3,2.39063]
[1742711773346,2.7189,2001.4,2001.3,1.3911]
[1742711777954,2.7189,2001.4,2001.3,2.39063]
[1742711782559,3.71838,2001.4,2001.3,1.3911]
[1742711782959,3.71838,2001.4,2001.2,4.59609756]
[1742711783161,0.99953,2001.3,2001.2,3.91139756]
[1742711783362,2.34451,2001.4,2001.2,5.77905103]
[1742711783562,2.34451,2001.4,2001.3,1.3455]
[1742711787662,2.34451,2001.4,2001.2,3.91139756]
[1742711787863,2.34451,2001.4,2001.2,5.25399756]
[1742711788158,2.34451,2001.4,2001.2,6.25356756]
[1742711788365,2.34451,2001.4,2001.2,5.25399756]
[1742711788554,2.34451,2001.4,2001.3,1.3426]
[1742711791059,1.345,2001.4,2001.3,1.3426]
[1742711791662,2.34448,2001.4,2001.3,1.3426]
[1742711792467,1.345,2001.4,2001.3,2.34213]
[1742711792665,1.345,2001.4,2001.3,3.03493]
[1742711792865,2.34448,2001.4,2001.3,2.0354]
[1742711793359,1.345,2001.4,2001.3,2.0354]
[1742711793562,2.34448,2001.4,2001.3,2.0354]
[1742711794867,2.34448,2001.4,2001.3,2.55840773]
[1742711795570,2.34448,2001.4,2001.3,2.55840399]
[1742711795767,0.90087358,2001.6,2001.3,2.55840399]
[1742711795964,0.90087358,2001.6,2001.4,2.83844399]
[1742711796165,0.99935,2001.7,2001.5,1.316]
[1742711796365,0.99935,2001.7,2001.5,1.9901]
[1742711796865,0.99935,2001.7,2001.6,1.316]
[1742711797360,2.34545,2001.7,2001.6,1.316]
[1742711798564,0.90087358,2001.9,2001.8,0.99928]
[1742711799066,4.8959,2002.0,2001.9,0.99923]
[1742711799375,4.8959,2002.0,2001.6,0.6434]
[1742711799666,4.8959,2002.0,2001.7,0.52233068]
[1742711799972,4.8959,2002.0,2001.8,0.99923]
[1742711799973,1.2924,2001.9,2001.8,0.99923]
[1742711800164,2.09237708,2001.9,2001.8,0.99923]
[1742711800363,1.2924,2001.9,2001.8,0.99923]
[1742711801974,1.2924,2001.9,2001.7,2.3591]
[1742711802473,1.2924,2001.9,2001.8,1.3441]
[1742711802864,2.29163,2001.9,2001.8,1.3441]
[1742711803069,2.95903,2001.9,2001.8,1.3441]
[1742711805776,1.9598,2001.9,2001.8,2.34338]
[1742711806969,2.95903,2001.9,2001.8,1.3441]
[1742711807572,2.95903,2001.9,2001.8,2.34338]
[1742711807881,2.95903,2001.9,2001.8,1.3441]
[1742711810768,2.95903,2001.9,2001.8,2.34338]
[1742711810976,2.95903,2001.9,2001.8,1.3441]
[1742711812581,2.95903,2001.9,2001.8,2.34338]
[1742711813381,2.95903,2001.9,2001.8,1.3441]
[1742711815678,0.99933,2001.7,2001.6,4.85055]
[1742711815883,2.27961,2001.8,2001.7,1.3016]
[1742711822376,0.99938,2001.6,2001.5,1.67349]
[1742711822583,1.9112,2001.7,2001.4,1.65505]
[1742711822783,2.36333,2001.5,2001.4,3.00685]
[1742711822984,2.36333,2001.5,2001.4,1.65505]
[1742711823995,1.3639,2001.5,2001.4,1.65505]
[1742711824493,1.3639,2001.5,2001.4,2.1772965]
[1742711824891,0.6373,2001.7,2001.5,0.99941]
[1742711824892,1.63665,2001.7,2001.5,0.99941]
[1742711825093,1.3639,2001.6,2001.5,0.99941]
[1742711825794,0.99928,2001.8,2001.6,0.99934]
[1742711825993,1.2738,2001.7,2001.6,0.99934]
[1742711826393,0.99928,2001.8,2001.7,0.99932]
[1742711826585,1.2738,2001.9,2001.7,0.99932]
[1742711827292,0.99928,2001.8,2001.6,0.99934]
[1742711828188,1.2738,2001.9,2001.6,0.99934]
[1742711828488,2.27307,2001.9,2001.7,1.52159106]
[1742711828695,0.99929,2001.8,2001.6,4.20715]
[1742711828993,0.99929,2001.8,2001.7,1.52162897]
[1742711828994,1.2891,2001.8,2001.7,1.52162897]
[1742711829193,1.2891,2001.8,2001.7,1.52162025]
[1742711831696,1.2891,2001.8,2001.7,1.52162724]
[1742711833086,1.2891,2001.8,2001.7,0.99931]
[1742711833290,1.2891,2001.8,2001.7,1.52163941]
[1742711835296,1.2891,2001.8,2001.7,1.52161698]
[1742711837098,1.2891,2001.8,2001.7,1.52156876]
[1742711837299,1.2891,2001.8,2001.7,2.82656876]
[1742711837697,1.2891,2001.8,2001.7,2.82655923]
[1742711838598,1.2891,2001.8,2001.7,3.51815923]
[1742711839098,1.2891,2001.8,2001.7,2.99591]
[1742711839401,1.2891,2001.8,2001.7,3.51837755]
[1742711841298,1.2891,2001.8,2001.7,3.51835245]
[1742711842203,1.2891,2001.8,2001.7,4.15655245]
[1742711843094,1.2891,2001.8,2001.7,4.15653197]
[1742711843295,1.2891,2001.8,2001.7,4.1565307]
[1742711843692,1.2891,2001.8,2001.7,4.15650643]
[1742711847308,1.2891,2001.8,2001.7,4.1565052]
[1742711849304,1.2891,2001.8,2001.7,4.15654182]
[1742711849806,1.2891,2001.8,2001.7,4.15658574]
[1742711851404,1.2891,2001.8,2001.7,4.15659626]
[1742711852317,1.2891,2001.8,2001.7,4.1566232]
[1742711852803,1.2891,2001.8,2001.7,7.3644232]
[1742711853407,1.2891,2001.8,2001.7,7.36451134]
[1742711855815,1.2891,2001.8,2001.7,6.84191]
[1742711856113,1.2891,2001.8,2001.7,7.36483889]
[1742711857301,1.2891,2001.8,2001.7,6.84191]
[1742711857507,1.2891,2001.8,2001.7,7.36494249]
[1742711858005,1.2891,2001.8,2001.7,6.67334249]
[1742711858201,1.2891,2001.8,2001.7,6.03514249]
[1742711858405,1.9422,2001.8,2001.7,4.73014249]
[1742711858819,1.9422,2001.8,2001.7,3.73083249]
[1742711859210,1.9422,2001.8,2001.7,3.73092353]
[1742711859914,1.9422,2001.8,2001.7,4.73025353]
[1742711860113,1.9422,2001.8,2001.7,6.04705353]
[1742711862818,1.9422,2001.8,2001.7,6.04704692]
[1742711863414,1.9422,2001.8,2001.7,6.04704747]
[1742711864718,1.9422,2001.8,2001.7,5.52393]
[1742711865119,1.9422,2001.8,2001.7,2.31613]
[1742711868427,1.9422,2001.8,2001.7,2.83922989]
[1742711868626,1.9422,2001.8,2001.7,2.83922097]
[1742711871625,1.9422,2001.8,2001.7,2.83920736]
[1742711872123,1.9422,2001.8,2001.7,2.83920195]
[1742711873723,1.9422,2001.8,2001.7,2.83919958]
[1742711875625,1.9422,2001.8,2001.7,2.83910083]
[1742711878324,1.9422,2001.8,2001.7,2.83899945]
[1742711883232,1.9422,2001.8,2001.7,2.83901014]
[1742711885136,1.9422,2001.8,2001.7,2.83898864]
[1742711885738,1.9422,2001.8,2001.7,2.83902038]
[1742711887232,1.9422,2001.8,2001.7,3.00193]
[1742711887434,1.9422,2001.8,2001.7,3.5248817]
[1742711891731,1.2891,2001.8,2001.7,3.5248817]
[1742711891937,0.6804,2002.1,2002.0,0.99918]
[1742711892134,0.00749756,2002.3,2002.0,0.5229517]
[1742711892438,0.00749756,2002.3,2002.2,0.99908]
[1742711892641,0.00749756,2002.3,2002.2,1.52148213]
[1742711893143,0.00749756,2002.3,2002.2,0.99908]
[1742711893337,1.38359756,2002.3,2002.2,2.39838]
[1742711907566,0.00749756,2002.3,2002.2,6.12701484]
[1742711907763,0.6578,2002.6,2002.5,0.99893]
[1742711908866,2.0276,2002.6,2002.5,3.02303]
[1742711912873,1.3698,2002.6,2002.5,3.02303]
[1742711921987,1.3698,2002.6,2002.5,2.32943]
[1742711932987,2.36868,2002.6,2002.4,1.64974]
[1742711933192,0.6422,2002.5,2002.4,2.92094]
[1742711933387,1.9288,2002.5,2002.3,1.00648756]
[1742711933588,0.6627,2002.4,2002.3,2.27768756]
[1742711933783,1.9493,2002.4,2002.3,2.79909213]
[1742711933989,1.9493,2002.4,2002.3,1.80010213]
[1742711934689,1.9493,2002.4,2002.3,2.27772756]
[1742711937592,1.9493,2002.4,2002.3,2.79932659]
[1742711938295,1.9493,2002.4,2002.3,2.79955448]
[1742711940201,1.9493,2002.4,2002.3,2.79971598]
[1742711942099,1.9493,2002.4,2002.3,2.7997425]
[1742711943504,1.9493,2002.4,2002.3,2.79973626]
[1742711945606,1.9493,2002.4,2002.3,2.79975113]
[1742711947709,1.9493,2002.4,2002.3,2.79993347]
[1742711948711,1.9493,2002.4,2002.3,3.45923347]
[1742711949615,1.9493,2002.4,2002.3,3.45943905]
[1742711950213,1.9493,2002.4,2002.3,3.45943184]
[1742711953613,1.2866,2002.4,2002.3,3.45957719]
[1742711955619,1.2866,2002.4,2002.3,3.45967304]
[1742711957724,1.2866,2002.4,2002.3,6.66747304]
[1742711959419,1.2866,2002.4,2002.3,3.45967304]
[1742711959724,1.2866,2002.4,2002.3,6.14482756]
[1742711960023,1.2866,2002.4,2002.3,6.66747396]
[1742711961821,1.2866,2002.4,2002.3,6.66748756]
[1742711962224,0.90081138,2002.7,2002.6,0.99888]
[1742711962723,4.91586863,2002.8,2002.6,0.99888]
[1742711963022,0.635,2002.7,2002.6,0.99888]
[1742711963626,1.9386,2002.7,2002.6,0.99888]
[1742711971127,1.3036,2002.7,2002.6,2.33338]
[1742711971518,1.3036,2002.7,2002.6,2.85575354]
[1742711973329,1.3036,2002.7,2002.6,2.85552855]
[1742711973826,1.3036,2002.7,2002.6,2.85544555]
[1742711974127,1.3036,2002.7,2002.6,6.06324555]
[1742711976234,1.3036,2002.7,2002.6,6.06304865]
[1742711981829,1.3036,2002.7,2002.6,6.0628925]
[1742711983723,1.3036,2002.7,2002.6,5.54118]
[1742711983929,1.3036,2002.7,2002.6,2.85506103]
[1742711984328,0.00749756,2002.8,2002.7,0.99883]
[1742711984532,0.00749756,2002.8,2002.7,2.90060991]
[1742711985132,1.37919756,2002.8,2002.7,2.90060991]
[1742711985328,0.00749756,2002.8,2002.7,2.90060991]
[1742711986439,0.00749756,2002.8,2002.7,2.90041488]
[1742711987835,0.00749756,2002.8,2002.7,2.90036629]
[1742711989942,0.00749756,2002.8,2002.7,2.90033372]
[1742711990347,0.00749756,2002.8,2002.7,2.90035901]
[1742711992045,0.00749756,2002.8,2002.7,2.90029744]
[1742711993850,0.00749756,2002.8,2002.7,2.90030019]
[1742711996550,0.00749756,2002.8,2002.7,2.90027849]
[1742711997046,0.00749756,2002.8,2002.7,3.28001915]
[1742711997843,1.3717,2003.0,2002.9,0.99873]
[1742711998038,1.3717,2003.0,2002.9,4.72780005]
[1742711998442,1.3717,2003.0,2002.9,6.81970005]
[1742711999650,0.6704,2003.3,2003.2,0.99858]
[1742712001042,2.0134,2003.3,2003.2,0.99858]
[1742712002850,2.0134,2003.3,2003.1,2.31009]
[1742712003157,1.9624,2003.2,2003.1,2.31013]
[1742712004159,1.9624,2003.2,2003.0,3.8905]
[1742712004160,1.9624,2003.2,2003.0,3.2078]
[1742712004353,1.3024,2003.1,2003.0,5.53374]
[1742712004551,1.3024,2003.1,2003.0,6.05454407]
[1742712005151,2.30103,2003.1,2003.0,3.2078]
[1742712005358,1.3024,2003.1,2002.9,0.99868]
[1742712005549,2.7386,2003.0,2002.9,0.99869]
[1742712006851,2.7386,2003.0,2002.8,0.99874]
[1742712007052,1.3994,2002.9,2002.8,0.99874]
[1742712007249,1.3994,2002.9,2002.8,1.51970813]
[1742712007945,2.39813,2002.9,2002.8,0.52096813]
[1742712008150,1.3994,2002.9,2002.8,1.51974813]
[1742712009358,1.3994,2002.9,2002.8,1.51986787]
[1742712011451,1.3994,2002.9,2002.8,1.51991346]
[1742712012654,1.3994,2002.9,2002.8,1.51996414]
[1742712013563,1.3994,2002.9,2002.8,1.52001312]
[1742712015453,1.3994,2002.9,2002.8,0.99878]
[1742712015762,1.3994,2002.9,2002.8,1.52006443]
[1742712016666,1.3994,2002.9,2002.8,4.72786443]
[1742712017365,1.3994,2002.9,2002.8,6.00450532]
[1742712017558,1.3994,2002.9,2002.8,6.00452388]
[1742712019665,1.3994,2002.9,2002.8,6.00471178]
[1742712021462,1.3994,2002.9,2002.8,5.48318]
[1742712021651,1.3994,2002.9,2002.8,6.00471689]
[1742712022153,1.3994,2002.9,2002.8,6.00471665]
[1742712023667,1.3994,2002.9,2002.8,6.00475844]
[1742712025763,1.3994,2002.9,2002.8,4.72818777]
[1742712027472,1.3994,2002.9,2002.8,4.72819299]
[1742712027872,1.3994,2002.9,2002.8,5.42399299]
[1742712028066,1.3994,2002.9,2002.8,6.7059598]
[1742712029570,1.3994,2002.9,2002.8,6.70597588]
[1742712031573,1.3994,2002.9,2002.8,6.70605103]
[1742712032377,1.3994,2002.9,2002.8,3.49825103]
[1742712033477,1.3994,2002.9,2002.8,2.97658]
[1742712033675,1.3994,2002.9,2002.8,3.49846353]
[1742712034071,1.3994,2002.9,2002.8,3.49845812]
[1742712035574,1.3994,2002.9,2002.8,3.49870138]
[1742712037279,1.3994,2002.9,2002.8,3.49872641]
[1742712039673,1.3994,2002.9,2002.8,6.18438]
[1742712039981,1.3994,2002.9,2002.8,6.7065106]
[1742712040479,1.3994,2002.9,2002.8,3.4987106]
[1742712040681,1.3994,2002.9,2002.8,6.7065106]
[1742712041382,1.3994,2002.9,2002.8,6.70650952]
[1742712043278,1.3994,2002.9,2002.8,6.7065082]
[1742712045273,1.3994,2002.9,2002.8,6.7065112]
[1742712046682,1.3994,2002.9,2002.8,4.7287112]
[1742712047884,1.3994,2002.9,2002.8,4.72866913]
[1742712049077,1.3994,2002.9,2002.8,1.52086913]
[1742712049279,1.3994,2002.9,2002.8,4.72866913]
[1742712049876,1.3994,2002.9,2002.8,3.72988913]
[1742712050074,5.60593,2002.9,2002.8,0.52208913]
[1742712050274,4.6072,2002.9,2002.7,0.9988]
[1742712050475,2.0533,2002.8,2002.7,0.9988]
[1742712050675,2.0533,2002.8,2002.7,1.52087453]
[1742712052888,2.0533,2002.8,2002.7,2.82267453]
[1742712053285,2.0533,2002.8,2002.7,2.82230025]
[1742712053792,2.0533,2002.8,2002.7,3.45460025]
[1742712054390,0.6797,2003.0,2002.9,0.99873]
[1742712055092,0.6377,2003.1,2003.0,0.99868]
[1742712055493,0.6377,2003.1,2003.0,4.20648]
[1742712055793,1.9269,2003.1,2003.0,5.49768]
[1742712056788,1.9269,2003.1,2003.0,2.28988]
[1742712058991,1.9269,2003.1,2003.0,0.99868]
[1742712060303,0.99868,2003.0,2002.9,2.37069]
[1742712060487,1.3593,2003.0,2002.9,2.37069]
[1742712061499,1.3593,2003.0,2002.9,1.372]
[1742712061793,2.358,2003.0,2002.9,0.99873]
[1742712062795,2.358,2003.0,2002.8,2.39597]
[1742712063002,1.9899,2002.9,2002.8,2.39597]
[1742712063295,1.9899,2002.9,2002.8,1.52037222]
[1742712064291,2.98863,2002.9,2002.8,1.52037222]
[1742712064487,2.98863,2002.9,2002.8,0.52160222]
[1742712064702,2.98863,2002.9,2002.7,4.83889]
[1742712064999,1.3041,2002.8,2002.7,4.83889]
[1742712065199,1.3041,2002.8,2002.7,4.36171905]
[1742712065498,2.0033,2002.8,2002.7,4.36171905]
[1742712065794,2.0033,2002.8,2002.7,5.36054905]
[1742712066396,2.0033,2002.8,2002.7,4.36171905]
[1742712067794,2.0033,2002.8,2002.7,5.36054905]
[1742712068202,2.0033,2002.8,2002.7,5.36052934]
[1742712069099,2.0033,2002.8,2002.7,3.72939934]
[1742712069602,3.00208,2002.8,2002.7,3.72939934]
[1742712070293,2.0033,2002.8,2002.7,3.72939934]
[1742712070488,3.00208,2002.8,2002.7,0.52162509]
[1742712070905,3.00208,2002.8,2002.6,0.99887]
[1742712071208,1.2957,2002.7,2002.6,0.99887]
[1742712071414,1.2957,2002.7,2002.6,1.52057803]
[1742712072006,1.2957,2002.7,2002.6,1.52055137]
[1742712073007,1.2957,2002.7,2002.6,0.99887]
[1742712076110,1.2957,2002.7,2002.6,1.52056383]
[1742712077304,1.2957,2002.7,2002.6,2.87426383]
[1742712078610,1.2957,2002.7,2002.6,1.87539383]
[1742712079414,1.2957,2002.7,2002.6,2.87427383]
[1742712084003,1.2957,2002.7,2002.6,1.3537]
[1742712084208,1.2957,2002.7,2002.6,1.87515442]
[1742712084410,1.2957,2002.7,2002.6,2.87403442]
[1742712084611,2.29453,2002.7,2002.6,1.3537]
[1742712087422,2.29453,2002.7,2002.6,2.35258]